fUSD/lending_fUSD_20240821
["ID","MTS","AMOUNT","RATE_DAILY","PERIOD"]
[335494567,1724271092216,-1003.1805774,0.00021917,2]
[335494568,1724271092225,-1000.0,0.00021917,20]
[335494569,1724271092234,-1000.0,0.00021917,20]
[335494570,1724271092243,-1000.0,0.00021917,20]
[335494571,1724271092252,-1000.0,0.00021917,20]
[335494572,1724271092261,-1000.0,0.00021917,20]
[335494573,1724271092270,-1000.0,0.00021917,20]
[335494574,1724271092283,-1000.0,0.00021917,20]
[335494575,1724271092292,-1000.0,0.00021917,20]
[335494576,1724271092301,-1000.0,0.00021917,20]
[335494577,1724271092310,-1000.0,0.00021917,20]
[335494578,1724271092319,-1000.0,0.00021917,20]
[335494579,1724271092328,-1000.0,0.00021917,20]
[335494580,1724271092337,-1000.0,0.00021917,20]
[335494581,1724271092346,-1000.0,0.00021917,20]
[335494582,1724271092356,-1000.0,0.00021917,20]
[335494583,1724271092366,-1000.0,0.00021917,20]
[335494584,1724271092375,-1000.0,0.00021917,20]
[335494585,1724271092384,-1000.0,0.00021917,20]
[335494586,1724271092393,-1000.0,0.00021917,20]
[335494587,1724271092402,-518.64774274,0.00021917,20]
[335494588,1724271092411,-484.9,0.00021918,2]
[335494589,1724271092420,-484.9,0.00021918,2]
[335494590,1724271092429,-484.9,0.00021918,2]
[335494591,1724271092438,-484.9,0.00021918,2]
[335494592,1724271092447,-484.9,0.00021918,2]
[335494593,1724271092456,-484.9,0.00021918,2]
[335494594,1724271092465,-484.9,0.00021918,2]
[335494595,1724271092474,-484.9,0.00021918,2]
[335494596,1724271092483,-484.9,0.00021918,2]
[335494597,1724271092492,-484.9,0.00021918,2]
[335494598,1724271092501,-484.9,0.00021918,2]
[335494599,1724271092510,-484.9,0.00021918,2]
[335494600,1724271092521,-484.9,0.00021918,2]
[335494601,1724271092529,-484.9,0.00021918,2]
[335494602,1724271092539,-484.9,0.00021918,2]
[335494603,1724271092548,-484.9,0.00021918,2]
[335494604,1724271092557,-484.9,0.00021918,2]
[335494605,1724271092566,-484.9,0.00021918,2]
[335494606,1724271092575,-484.9,0.00021918,2]
[335494607,1724271092584,-484.9,0.00021918,2]
[335494608,1724271092592,-4401.9,0.00021918,2]
[335494609,1724271092602,-150.0,0.00021918,2]
[335494610,1724271092616,-500.0,0.00021918,2]
[335494611,1724271092625,-500.0,0.00021918,2]
[335494612,1724271092635,-500.0,0.00021918,2]
[335494613,1724271092643,-500.0,0.00021918,2]
[335494614,1724271092652,-500.0,0.00021918,2]
[335494615,1724271092662,-500.0,0.00021918,2]
[335494616,1724271092671,-150.0,0.00021918,2]
[335494617,1724271092680,-150.0,0.00021918,2]
[335494618,1724271092689,-150.0,0.00021918,2]
[335494619,1724271092698,-150.0,0.00021918,2]
[335494620,1724271092707,-150.0,0.00021918,2]
[335494621,1724271092716,-150.0,0.00021918,2]
[335494622,1724271092726,-150.0,0.00021918,2]
[335494623,1724271092735,-150.0,0.00021918,2]
[335494624,1724271092743,-150.0,0.00021918,2]
[335494625,1724271092752,-150.0,0.00021918,2]
[335494626,1724271092761,-150.0,0.00021918,2]
[335494627,1724271092770,-150.0,0.00021918,2]
[335494628,1724271092778,-150.0,0.00021918,2]
[335494629,1724271092787,-150.0,0.00021918,2]
[335494630,1724271092796,-150.0,0.00021918,2]
[335494631,1724271092804,-150.0,0.00021918,2]
[335494632,1724271092814,-150.0,0.00021918,2]
[335494633,1724271092823,-150.0,0.00021918,2]
[335494634,1724271092833,-150.0,0.00021918,2]
[335494635,1724271092842,-150.0,0.00021918,2]
[335494636,1724271092851,-150.0,0.00021918,2]
[335494637,1724271092861,-150.0,0.00021918,2]
[335494638,1724271092870,-150.0,0.00021918,2]
[335494639,1724271092879,-150.0,0.00021918,2]
[335494640,1724271092888,-150.0,0.00021918,2]
[335494641,1724271092897,-150.0,0.00021918,2]
[335494642,1724271092906,-150.0,0.00021918,2]
[335494643,1724271092916,-150.0,0.00021918,2]
[335494644,1724271092925,-150.0,0.00021918,2]
[335494645,1724271092936,-150.0,0.00021918,2]
[335494646,1724271092946,-150.0,0.00021918,2]
[335494647,1724271092957,-150.0,0.00021918,2]
[335494648,1724271092966,-150.0,0.00021918,2]
[335494649,1724271092975,-150.0,0.00021918,2]
[335494650,1724271092984,-150.0,0.00021918,2]
[335494651,1724271092994,-150.0,0.00021918,2]
[335494652,1724271093004,-150.0,0.00021918,2]
[335494653,1724271093013,-150.0,0.00021918,2]
[335494654,1724271093022,-150.0,0.00021918,2]
[335494655,1724271093031,-150.0,0.00021918,2]
[335494656,1724271093040,-150.0,0.00021918,2]
[335494657,1724271093049,-150.0,0.00021918,2]
[335494658,1724271093059,-150.0,0.00021918,2]
[335494659,1724271093068,-150.0,0.00021918,2]
[335494660,1724271093077,-150.0,0.00021918,2]
[335494661,1724271093087,-150.0,0.00021918,2]
[335494662,1724271093096,-150.0,0.00021918,2]
[335494663,1724271093108,-150.0,0.00021918,2]
[335494664,1724271093117,-150.0,0.00021918,2]
[335494665,1724271093126,-150.0,0.00021918,2]
[335494666,1724271093136,-150.0,0.00021918,2]
[335494667,1724271093145,-150.0,0.00021918,2]
[335494668,1724271093154,-150.0,0.00021918,2]
[335494669,1724271093162,-150.0,0.00021918,2]
[335494670,1724271093172,-150.0,0.00021918,2]
[335494671,1724271093181,-150.0,0.00021918,2]
[335494672,1724271093190,-150.0,0.00021918,2]
[335494673,1724271093199,-150.0,0.00021918,2]
[335494674,1724271093209,-150.0,0.00021918,2]
[335494675,1724271093218,-150.0,0.00021918,2]
[335494676,1724271093227,-150.0,0.00021918,2]
[335494677,1724271093237,-150.0,0.00021918,2]
[335494678,1724271093246,-150.0,0.00021918,2]
[335494679,1724271093255,-150.0,0.00021918,2]
[335494680,1724271093264,-150.0,0.00021918,2]
[335494681,1724271093273,-150.0,0.00021918,2]
[335494682,1724271093283,-150.0,0.00021918,2]
[335494683,1724271093295,-150.0,0.00021918,2]
[335494684,1724271093305,-150.0,0.00021918,2]
[335494685,1724271093314,-150.0,0.00021918,2]
[335494686,1724271093324,-150.0,0.00021918,2]
[335494687,1724271093335,-150.0,0.00021918,2]
[335494688,1724271093345,-150.0,0.00021918,2]
[335494689,1724271093354,-150.0,0.00021918,2]
[335494690,1724271093365,-150.0,0.00021918,2]
[335494691,1724271093378,-150.0,0.00021918,2]
[335494692,1724271093388,-150.0,0.00021918,2]
[335494693,1724271093398,-150.0,0.00021918,2]
[335494694,1724271093407,-150.0,0.00021918,2]
[335494695,1724271093417,-150.0,0.00021918,2]
[335494696,1724271093427,-150.0,0.00021918,2]
[335494697,1724271093437,-150.0,0.00021918,2]
[335494698,1724271093447,-150.0,0.00021918,2]
[335494699,1724271093456,-150.0,0.00021918,2]
[335494700,1724271093466,-150.0,0.00021918,2]
[335494701,1724271093476,-150.0,0.00021918,2]
[335494702,1724271093486,-150.0,0.00021918,2]
[335494703,1724271093496,-150.0,0.00021918,2]
[335494704,1724271093506,-150.0,0.00021918,2]
[335494705,1724271093516,-150.0,0.00021918,2]
[335494706,1724271093526,-150.0,0.00021918,2]
[335494707,1724271093536,-150.0,0.00021918,2]
[335494708,1724271093546,-150.0,0.00021918,2]
[335494709,1724271093556,-150.0,0.00021918,2]
[335494710,1724271093565,-150.0,0.00021918,2]
[335494711,1724271093575,-150.0,0.00021918,2]
[335494712,1724271093585,-150.0,0.00021918,2]
[335494713,1724271093594,-150.0,0.00021918,2]
[335494714,1724271093604,-150.0,0.00021918,2]
[335494715,1724271093615,-150.0,0.00021918,2]
[335494716,1724271093624,-150.0,0.00021918,2]
[335494717,1724271093634,-500.0,0.00021918,2]
[335494718,1724271093643,-500.0,0.00021918,2]
[335494719,1724271093652,-500.0,0.00021918,2]
[335494720,1724271093662,-500.0,0.00021918,2]
[335494721,1724271093671,-500.0,0.00021918,2]
[335494722,1724271093680,-500.0,0.00021918,2]
[335494723,1724271093689,-500.0,0.00021918,2]
[335494724,1724271093699,-500.0,0.00021918,2]
[335494725,1724271093708,-523.95865255,0.00021918,2]
[335494726,1724271093718,-574.84,0.00021982,2]
[335494727,1724271093727,-1000.0,0.00021986,14]
[335494728,1724271093738,-1893.79,0.00021993,2]
[335494729,1724271093748,-672.34309546,0.00021999,21]
[335494730,1724271093758,-500.0,0.00022,2]
[335494731,1724271093768,-236.54717718,0.00022,30]
[335494732,1724271093778,-242.34052459,0.00022,2]
[335494733,1724271093788,-1070.41549789,0.00022,2]
[335494734,1724271093797,-641000.0,0.00022,2]
[335494735,1724271093807,-38999.99999801,0.00022,2]
[335494736,1724271093816,-85623.37,0.00022,7]
[335494737,1724271093825,-635.78115509,0.00022,2]
[335494738,1724271093835,-7881.07780656,0.00022,15]
[335494739,1724271093844,-753.0,0.00022,2]
[335494740,1724271093854,-29977.91913764,0.00022,2]
[335494741,1724271093865,-797.02122535,0.00022,2]
[335494742,1724271093874,-900.0,0.00022,23]
[335494743,1724271093884,-388.0,0.00022,2]
[335494744,1724271093894,-1350.0,0.00022,2]
[335494745,1724271093904,-173.0,0.00022,2]
[335494746,1724271093914,-426.440126,0.00022,2]
[335494747,1724271093924,-173.0,0.00022,2]
[335494748,1724271093934,-2110.0,0.00022085,30]
[335494749,1724271093943,-227.29013871,0.0002211,2]
[335494750,1724271093953,-1003.46,0.00022135,2]
[335494751,1724271093963,-494.57208835,0.00022161,7]
[335494752,1724271093972,-1217.89085899,0.00022161,7]
[335494753,1724271093981,-898.68201834,0.00022161,7]
[335494754,1724271093990,-1218.21824723,0.00022161,7]
[335494755,1724271094000,-173.0,0.00022192,2]
[335494756,1724271094010,-500.0,0.00022192,2]
[335494757,1724271094020,-250.0,0.000222,15]
[335494758,1724271094030,-250.0,0.000222,15]
[335494759,1724271094040,-3000.0,0.000222,2]
[335494760,1724271094049,-531.48,0.00022202,2]
[335494761,1724271094058,-178.79,0.00022202,2]
[335494762,1724271094068,-426.79,0.00022202,2]
[335494763,1724271094078,-287.2,0.00022202,2]
[335494764,1724271094088,-150.0,0.00022202,2]
[335494765,1724271094098,-356.83,0.00022202,2]
[335494766,1724271094109,-531.48,0.00022202,2]
[335494767,1724271094119,-531.48,0.00022202,2]
[335494768,1724271094129,-853.5,0.00022202,2]
[335494769,1724271094139,-300.0,0.00022202,2]
[335494770,1724271094149,-250.0,0.0002229,15]
[335494771,1724271094159,-1000.0,0.00022295,14]
[335494772,1724271094170,-3783.89523557,0.000223,30]
[335494773,1724271094179,-494.57208835,0.0002241,7]
[335494774,1724271094189,-1217.89085899,0.0002241,7]
[335494775,1724271094198,-898.68201834,0.0002241,7]
[335494776,1724271094208,-1218.21824723,0.0002241,7]
[335494777,1724271094218,-561.66,0.00022465,7]
[335494778,1724271094228,-561.66,0.00022465,7]
[335494779,1724271094238,-561.66,0.00022465,7]
[335494780,1724271094248,-561.66,0.00022465,7]
[335494781,1724271094258,-561.66,0.00022465,7]
[335494782,1724271094267,-561.66,0.00022465,7]
[335494783,1724271094280,-561.66,0.00022465,7]
[335494784,1724271094289,-561.66,0.00022465,7]
[335494785,1724271094299,-561.66,0.00022465,7]
[335494786,1724271094309,-561.66,0.00022465,7]
[335494787,1724271094319,-561.66,0.00022465,7]
[335494788,1724271094329,-561.66,0.00022465,7]
[335494789,1724271094338,-561.66,0.00022465,7]
[335494790,1724271094348,-561.66,0.00022465,7]
[335494791,1724271094359,-561.66,0.00022465,7]
[335494792,1724271094371,-561.66,0.00022465,7]
[335494793,1724271094380,-561.66,0.00022465,7]
[335494794,1724271094390,-561.66,0.00022465,7]
[335494795,1724271094400,-561.66,0.00022465,7]
[335494796,1724271094409,-561.66,0.00022465,7]
[335494797,1724271094419,-561.66,0.00022465,7]
[335494798,1724271094429,-561.66,0.00022465,7]
[335494799,1724271094439,-561.66,0.00022465,7]
[335494800,1724271094448,-561.73397898,0.00022465,7]
[335494801,1724271094458,-1000.0,0.00022466,2]
[335494802,1724271094468,-249.17496277,0.00022466,2]
[335494803,1724271094477,-150.0,0.00022495,2]
[335494804,1724271094487,-260.0,0.000225,2]
[335494805,1724271094497,-2900.0,0.000225,15]
[335494806,1724271094507,-33524.89268627,0.000225,2]
[335494807,1724271094649,-85623.37,0.000225,7]
[335494808,1724271094659,-1000.0,0.000225,2]
[335494809,1724271094669,-1309.4,0.000225,31]
[335494810,1724271094679,-1309.4,0.000225,31]
[335494811,1724271094688,-1309.4,0.000225,31]
[335494812,1724271094698,-1309.4,0.000225,31]
[335494813,1724271094707,-1309.4,0.000225,31]
[335494814,1724271094717,-1309.4,0.000225,31]
[335494815,1724271094727,-1309.4,0.000225,31]
[335494816,1724271094737,-1309.4,0.000225,31]
[335494817,1724271094747,-1309.4,0.000225,31]
[335494818,1724271094762,-1309.4,0.000225,31]
[335494819,1724271094771,-1309.4,0.000225,31]
[335494820,1724271094781,-1309.4,0.000225,31]
[335494821,1724271094791,-1309.4,0.000225,31]
[335494822,1724271094801,-1309.4,0.000225,31]
[335494823,1724271094811,-1309.4,0.000225,31]
[335494824,1724271094820,-1309.4,0.000225,31]
[335494825,1724271094831,-1309.4,0.000225,31]
[335494826,1724271094841,-1309.4,0.000225,31]
[335494827,1724271094851,-1309.4,0.000225,31]
[335494828,1724271094862,-1309.4,0.000225,31]
[335494829,1724271094871,-1309.4,0.000225,31]
[335494830,1724271094881,-1309.4,0.000225,31]
[335494831,1724271094891,-1309.4,0.000225,31]
[335494832,1724271094900,-1309.4,0.000225,31]
[335494833,1724271094910,-2110.0,0.00022585,30]
[335494834,1724271094919,-1000.0,0.00022603,14]
[335494835,1724271094928,-152.0,0.0002265,7]
[335494836,1724271094938,-234.12467454,0.0002265,5]
[335494837,1724271094947,-494.57208835,0.00022659,7]
[335494838,1724271094956,-1217.89085899,0.00022659,7]
[335494839,1724271094965,-898.68201834,0.00022659,7]
[335494840,1724271094975,-1218.21824723,0.00022659,7]
[335494841,1724271094984,-5000.0,0.0002266,3]
[335494842,1724271094993,-842.29,0.00022788,2]
[335494843,1724271095003,-808.77,0.00022788,2]
[335494844,1724271095012,-314.88,0.0002279,2]
[335494845,1724271095021,-1000.0,0.000228,18]
[335494846,1724271095030,-302000.25931279,0.00022847,7]
[335494847,1724271095040,-1000.0,0.00022874,31]
[335494848,1724271095050,-9832.34471813,0.000229,2]
[335494849,1724271095059,-250.0,0.000229,15]
[335494850,1724271095068,-250.0,0.000229,15]
[335494851,1724271095077,-494.57208835,0.00022908,7]
[335494852,1724271095086,-1217.89085899,0.00022908,7]
[335494853,1724271095095,-898.68201834,0.00022908,7]
[335494854,1724271095106,-1218.21824723,0.00022908,7]
[335494855,1724271095115,-1000.0,0.00022911,14]
[335494856,1724271095125,-16336.0,0.0002295,4]
[335494857,1724271095134,-1000.0,0.00023,7]
[335494858,1724271095143,-1000.0,0.00023,7]
[335494859,1724271095152,-1000.0,0.00023,7]
[335494860,1724271095162,-1000.0,0.00023,7]
[335494861,1724271095171,-818.83,0.00023,7]
[335494862,1724271095181,-1014.53,0.00023,7]
[335494863,1724271095190,-2480.05819417,0.00023,2]
[335494864,1724271095199,-1000.0,0.00023,7]
[335494865,1724271095209,-1004.68,0.00023,7]
[335494866,1724271095218,-1005.11,0.00023,14]
[335494867,1724271095228,-1003.71,0.00023,7]
[335494868,1724271095238,-1000.0,0.00023,7]
[335494869,1724271095248,-85623.37,0.00023,7]
[335494870,1724271095257,-859.71,0.00023,7]
[335494871,1724271095267,-2223.0,0.00023,2]
[335494872,1724271095277,-157.44116761,0.00023,3]
[335494873,1724271095288,-16099.56844974,0.00023,5]
[335494874,1724271095298,-320.0,0.00023,10]
[335494875,1724271095308,-2000.0,0.00023,5]
[335494876,1724271095318,-900.0,0.00023,24]
[335494877,1724271095328,-1007.74,0.00023,7]
[335494878,1724271095339,-390.33780382,0.00023,4]
[335494879,1724271095348,-859.64,0.00023,12]
[335494880,1724271095359,-261.1884995,0.00023,120]
[335494881,1724271095371,-388.0,0.00023,2]
[335494882,1724271095382,-150.0,0.00023,2]
[335494883,1724271095391,-264.38307591,0.0002301,2]
[335494884,1724271095401,-173.0,0.00023014,2]
[335494885,1724271095411,-150.0,0.00023071,2]
[335494886,1724271095420,-2110.0,0.00023085,30]
[335494887,1724271095430,-25000.0,0.00023102,2]
[335494888,1724271095440,-5000.0,0.00023137,2]
[335494889,1724271095449,-494.57208835,0.00023157,7]
[335494890,1724271095460,-1217.89085899,0.00023157,7]
[335494891,1724271095469,-898.68201834,0.00023157,7]
[335494892,1724271095479,-1218.21824723,0.00023157,7]
[335494893,1724271095488,-49288.44473195,0.000232,2]
[335494894,1724271095499,-180.0,0.00023205,2]
[335494895,1724271095509,-1000.0,0.00023219,14]
[335494896,1724271095519,-7095.38352994,0.0002327,7]
[335494897,1724271095529,-1003.46,0.0002327,2]
[335494898,1724271095539,-464.52826806,0.000233,2]
[335494899,1724271095549,-5000.0,0.00023333,2]
[335494900,1724271095558,-1000.8,0.00023333,5]
[335494901,1724271095568,-215.0,0.000234,2]
[335494902,1724271095578,-494.57208835,0.00023406,7]
[335494903,1724271095588,-1217.89085899,0.00023406,7]
[335494904,1724271095597,-898.68201834,0.00023406,7]
[335494905,1724271095608,-1218.21824723,0.00023406,7]
[335494906,1724271095618,-500.0,0.00023438,5]
[335494907,1724271095628,-859.65,0.0002345,7]
[335494908,1724271095638,-5000.0,0.00023476,2]
[335494909,1724271095647,-25000.0,0.0002348,2]
[335494910,1724271095657,-85623.37,0.000235,7]
[335494911,1724271095666,-20281.4241975,0.000235,2]
[335494912,1724271095675,-1000.0,0.00023527,14]
[335494913,1724271095684,-1000.0,0.00023532,31]
[335494914,1724271095694,-156.7,0.00023562,2]
[335494915,1724271095703,-157.56,0.00023562,2]
[335494916,1724271095712,-1933.1020951,0.00023566,2]
[335494917,1724271095721,-1368.9,0.00023585,30]
[335494918,1724271095731,-25000.0,0.00023625,2]
[335494919,1724271095740,-1000.0,0.00023642,3]
[335494920,1724271095749,-1000.0,0.00023642,2]
[335494921,1724271095758,-1000.0,0.00023642,2]
[335494922,1724271095767,-1000.0,0.00023642,3]
[335494923,1724271095777,-1000.0,0.00023642,2]
[335494924,1724271095786,-1000.0,0.00023642,2]
[335494925,1724271095795,-1000.0,0.00023642,2]
[335494926,1724271095804,-1000.0,0.00023642,5]
[335494927,1724271095814,-1000.0,0.00023642,2]
[335494928,1724271095823,-1000.0,0.00023642,2]
[335494929,1724271095834,-1000.0,0.00023642,2]
[335494930,1724271095843,-1000.0,0.00023642,3]
[335494931,1724271095853,-1000.0,0.00023642,3]
[335494932,1724271095865,-1000.0,0.00023642,2]
[335494933,1724271095875,-1000.0,0.00023642,5]
[335494934,1724271095884,-1000.0,0.00023642,2]
[335494935,1724271095894,-1000.0,0.00023642,2]
[335494936,1724271095903,-150.0,0.00023648,2]
[335494937,1724271095912,-3727.0,0.0002365,2]
[335494938,1724271095921,-321.165,0.0002365,2]
[335494939,1724271095930,-530.92,0.0002365,2]
[335494940,1724271095940,-494.57208835,0.00023655,7]
[335494941,1724271095950,-1217.89085899,0.00023655,7]
[335494942,1724271095959,-898.68201834,0.00023655,7]
[335494943,1724271095969,-1218.21824723,0.00023655,7]
[335494944,1724271095978,-25000.0,0.00023659,2]
[335494945,1724271095988,-314.88,0.00023685,2]
[335494946,1724271095997,-10800.0,0.000237,10]
[335494947,1724271096006,-150.0,0.0002372,4]
[335494948,1724271096015,-18597.26975187,0.00023742,2]
[335494949,1724271096025,-215.0,0.0002378,2]
[335494950,1724271096035,-1000.00000001,0.0002379,20]
[335494951,1724271096044,-150.0,0.0002379,120]
[335494952,1724271096054,-5000.0,0.00023792,2]
[335494953,1724271096063,-10872.0,0.000238,10]
[335494954,1724271096072,-5000.0,0.00023817,2]
[335494955,1724271096082,-5000.0,0.00023827,2]
[335494956,1724271096092,-1902.74845601,0.00023836,14]
[335494957,1724271096101,-5000.0,0.00023873,2]
[335494958,1724271096112,-505.0,0.000239,2]
[335494959,1724271096121,-1500.0,0.000239,2]
[335494960,1724271096131,-494.57208835,0.00023904,7]
[335494961,1724271096141,-1217.89085899,0.00023904,7]
[335494962,1724271096150,-898.68201834,0.00023904,7]
[335494963,1724271096159,-1218.21824723,0.00023904,7]
[335494964,1724271096169,-335304.0,0.00023922,2]
[335494965,1724271096180,-485.62,0.00023948,2]
[335494966,1724271096189,-6070.39438595,0.00023986,7]
[335494967,1724271096199,-2404.01544852,0.00024,30]
[335494968,1724271096209,-1500.0,0.00024,6]
[335494969,1724271096220,-278317.38255331,0.00024,2]
[335494970,1724271096230,-1350.0,0.00024,10]
[335494971,1724271096240,-964.99461088,0.00024,2]
[335494972,1724271096251,-211.22397591,0.00024,2]
[335494973,1724271096261,-1003.4,0.00024,3]
[335494974,1724271096272,-322830.99905256,0.00024,3]
[335494975,1724271096284,-23260.92080402,0.00024,3]
[335494976,1724271096297,-155.0,0.00024,15]
[335494977,1724271096308,-85623.37,0.00024,7]
[335494978,1724271096319,-890.0,0.00024,10]
[335494979,1724271096331,-1000.0,0.00024,2]
[335494980,1724271096345,-173977.339233,0.00024,3]
[335494981,1724271096359,-900.0,0.00024,25]
[335494982,1724271096381,-575.0,0.00024,20]
[335494983,1724271096393,-250.42369213,0.00024,120]
[335494984,1724271096405,-388.0,0.00024,2]
[335494985,1724271096416,-2869.29177372,0.00024,7]
[335494986,1724271096426,-3337.74,0.00024,14]
[335494987,1724271096437,-5000.0,0.00024021,2]
[335494988,1724271096447,-1923.0,0.00024026,2]
[335494989,1724271096458,-623.0,0.00024026,2]
[335494990,1724271096468,-267.305,0.00024026,2]
[335494991,1724271096480,-1258.0,0.00024026,2]
[335494992,1724271096490,-447.0,0.00024026,2]
[335494993,1724271096501,-810.0,0.00024026,2]
[335494994,1724271096511,-556.0,0.00024026,2]
[335494995,1724271096521,-438.17,0.00024026,2]
[335494996,1724271096531,-591.685,0.00024026,2]
[335494997,1724271096541,-538.277,0.00024026,2]
[335494998,1724271096550,-3057.7560285,0.0002408,2]
[335494999,1724271096559,-494.57208835,0.00024153,7]
[335495000,1724271096569,-1217.89085899,0.00024153,7]
[335495001,1724271096579,-898.68201834,0.00024153,7]
[335495002,1724271096588,-1218.21824723,0.00024153,7]
[335495003,1724271096598,-176.0,0.00024164,2]
[335495004,1724271096615,-398.28850784,0.0002421,2]
[335495005,1724271096625,-221.23,0.00024225,2]
[335495006,1724271096635,-150.0,0.00024225,2]
[335495007,1724271096645,-1221.09724029,0.0002425,2]
[335495008,1724271096654,-25000.0,0.00024279,2]
[335495009,1724271096664,-23185.84342916,0.00024295,2]
[335495010,1724271096674,-151.082105,0.00024298,6]
[335495011,1724271096684,-397345.65804342,0.000243,2]
[335495012,1724271096694,-5000.0,0.00024325,2]
[335495013,1724271096704,-150.0,0.0002436,4]
[335495014,1724271096713,-500.0,0.00024384,2]
[335495015,1724271096723,-151.082105,0.00024398,7]
[335495016,1724271096732,-5000.0,0.00024398,2]
[335495017,1724271096741,-494.57208835,0.00024402,7]
[335495018,1724271096751,-1217.89085899,0.00024402,7]
[335495019,1724271096760,-898.68201834,0.00024402,7]
[335495020,1724271096770,-1218.21824723,0.00024402,7]
[335495021,1724271096779,-1003.46,0.00024405,2]
[335495022,1724271096787,-334.51224623,0.0002442,2]
[335495023,1724271096797,-151.082105,0.00024448,6]
[335495024,1724271096806,-5000.0,0.00024455,2]
[335495025,1724271096815,-21547.62753393,0.00024499,2]
[335495026,1724271096825,-1790.70448982,0.000245,2]
[335495027,1724271096835,-20000.0,0.000245,4]
[335495028,1724271096844,-13000.0,0.000245,2]
[335495029,1724271096854,-1000.0,0.000245,10]
[335495030,1724271096869,-159.46110261,0.000245,2]
[335495031,1724271096879,-5000.0,0.00024533,10]
[335495032,1724271096889,-25000.0,0.00024561,2]
[335495033,1724271096899,-314.88,0.0002458,2]
[335495034,1724271096908,-25000.0,0.00024593,2]
[335495035,1724271096917,-1553.1731326,0.000246,7]
[335495036,1724271096927,-5000.0,0.00024642,2]
[335495037,1724271096937,-494.57208835,0.00024651,7]
[335495038,1724271096946,-1217.89085899,0.00024651,7]
[335495039,1724271096956,-898.68201834,0.00024651,7]
[335495040,1724271096965,-1218.21824723,0.00024651,7]
[335495041,1724271096975,-500.0,0.00024657,2]
[335495042,1724271096985,-500.0,0.00024657,2]
[335495043,1724271096995,-500.0,0.00024657,2]
[335495044,1724271097004,-500.0,0.00024657,2]
[335495045,1724271097013,-500.0,0.00024657,2]
[335495046,1724271097023,-500.0,0.00024657,2]
[335495047,1724271097032,-500.0,0.00024657,2]
[335495048,1724271097042,-500.0,0.00024657,2]
[335495049,1724271097052,-500.0,0.00024657,2]
[335495050,1724271097061,-500.0,0.00024657,2]
[335495051,1724271097071,-500.0,0.00024657,2]
[335495052,1724271097080,-500.0,0.00024657,2]
[335495053,1724271097090,-500.0,0.00024657,2]
[335495054,1724271097099,-425.0208114,0.00024657,2]
[335495055,1724271097110,-873.059408,0.00024658,7]
[335495056,1724271097119,-873.059408,0.00024658,7]
[335495057,1724271097129,-873.059408,0.00024658,7]
[335495058,1724271097138,-873.059408,0.00024658,7]
[335495059,1724271097147,-873.059408,0.00024658,7]
[335495060,1724271097156,-873.059408,0.00024658,7]
[335495061,1724271097166,-873.059408,0.00024658,7]
[335495062,1724271097175,-873.059408,0.00024658,7]
[335495063,1724271097184,-873.059408,0.00024658,7]
[335495064,1724271097194,-873.059408,0.00024658,7]
[335495065,1724271097203,-873.059408,0.00024658,7]
[335495066,1724271097212,-873.059408,0.00024658,7]